{"text_format":"1","workbook":"xlsx","n_sheets":7,"sheets":["Welcome","Financial Analysis","84604 search","WebQuery","Utah County search","WebQueryRents","WebQueryIntRate"],"not_rendered":{"charts":0,"images":0,"macros":1,"external_links":0,"defined_names":49,"comments":0,"pivot_tables":0},"unopened":[],"bounds":{"document_bytes":16777216,"sheet_cells":100000,"rows_first":2000,"rows_last":500,"rows_between":2000,"halvings":0,"cell_chars":16384,"cell_head_chars":4096},"cells_cut":0,"cells_raw":0,"read":"whole","date_system":"1900"}

{"sheet":"Welcome","index":0,"n_rows":11,"n_cols":3,"rows_kept":11,"cut":false,"hidden":false,"merged":[[1,1,1,2],[10,1,10,2]]}
[]
[null,"Welcome to Residential Investment Search!"]
[]
[null,"Step 1","Select the \"Real Estate\" Tab."]
[null,"Step 2","Select \"Zip Code\" button and insert desired Zip Code for searching into text box."]
[null,"Step 3","Use buttons within \"Sort Homes\" to navigate through the results."]
[null,"Step 4","Use the \"County\" button to search rentals within the area."]
[null,"Step 5","Select the \"Select Property\" button within the calculate grouping to input selected property data."]
[null,"Step 6","Select \"Calculate IRR\" to see the results."]
[]
[null,"Thank you and make it a GREAT day!"]

{"sheet":"Financial Analysis","index":1,"n_rows":74,"n_cols":11,"rows_kept":74,"cut":false,"hidden":false,"merged":[[2,9,2,10],[14,9,14,10],[1,9,1,10]]}
[]
[null,"Financial Analysis",null,null,null,null,null,null,null,{"$f":"B59","v":"Investment Measures"}]
[null,"Inputs",null,null,null,null,null,null,null,"First Year Measures"]
[null,"Purchase Price",{"$f":"D4","v":"175000"},"175000",null,null,null,null,null,"Payback Period (years)",{"$f":"C61","v":10.482597892067913}]
[null,"Land Value",{"$f":"0.3*C4","v":52500},null,null,null,null,null,null,"Profit Margin",0.20198832324266153]
[null,"Improvement Value",{"$f":"C4-C5","v":122500},null,null,null,null,null,null,"Default or Breakeven Ratio",0]
[null,null,null,null,null,null,null,null,null,"Operating Expense Ratio",0.3]
[null,"Investors Criteria and Contribution",null,null,null,null,null,null,null,"Debt Coverage Ratio",1.5300052597584406]
[null,"Initial Equity Investment",{"$f":"D9","v":"35000"},"35000",null,null,null,null,null,"Loan to Value Ratio",0.8]
[null,"Investors Required Rate of Return",0.12,null,null,null,null,null,null,"Effective Gross Income Multiplier",10.58681185722928]
[null,null,null,null,null,null,null,null,null,"Capitalization Rate",6.6119999999999998E-2]
[null,"Financing Information",null,null,null,null,null,null,null,"Before Tax Cash on Cash Return",0.11452231144865764]
[null,"Mortgage Amount",{"$f":"C4-C9","v":140000},null,null,null,null,null,null,"After Tax Cash on Cash Return",9.5396199520034142E-2]
[null,"Financing Term (Years)",30]
[null,"No. of Payment Per Year",12,null,null,null,null,null,null,"Holding Period Measures"]
[null,"Annual Mortgage Interest Rate",3.5200000000000002E-2,3.52,null,null,null,null,null,"Net Present Value",2576.0995829571839]
[null,"Private Mortgage Insurance (yearly)",0,null,null,null,null,null,null,"Internal Rate of Return",0.13888624331559574]
[]
[null,"Tax Information"]
[null,"Depreciable Life (27.5 Res 39 Comm)",27.5]
[null,"Marginal Income Tax Rate",0.3]
[null,"Capital Gains Tax Rate",0.2]
[null,"Recapture Tax Rate",0.25]
[null,"Investor's Modified Adjusted Gross Inc.",100000]
[null,"Investor's Participation, Active? Y/N","y"]
[]
[null,"Forecast Operating Data"]
[null,"First Year forecast PGI",{"$f":"D28*12","v":17400},"1450","monthly rental assumption"]
[null,"Annual Growth in PGI",{"$f":"D29","v":"2%"},"2%"]
[null,"% Annual Vacancy",{"$f":"D30","v":0.05},0.05]
[null,"% Operating Expenses of EFI",0.3]
[]
[null,"Future Sales Information"]
[null,"Forecast Future Sales Price",{"$f":"C4*(1+D34)","v":183750},"5%","appreciation assumption"]
[null,"Future Selling Expenses",0.05]
[]
[null,null,0,1,2,3,4,5,null,"Termination (Reversion) Statement"]
[null,"Potential Gross Income",null,{"$f":"C28","v":17400},{"$f":"D38*(1+$C$29)","v":17748},{"$f":"E38*(1+$C$29)","v":18102.96},18465.019199999999,18834.319584000001,null,"Gross Future Sales Price",{"$f":"C34","v":183750}]
[null,"Less Vacancy & Collection Loss",null,{"$f":"-D38*$C$30","v":-870},{"$f":"-E38*$C$30","v":-887.40000000000009},-905.14800000000002,-923.25095999999996,-941.71597920000011,null,"Less Selling Expenses",{"$f":"-K38*C35","v":-9187.5}]
[null,"Plus Other Income",null,0,0,0,0,0,null,"Net Sales Proceeds",{"$f":"K38+K39","v":174562.5}]
[null,"Effective Gross Income",null,{"$f":"SUM(D38:D40)","v":16530},{"$f":"SUM(E38:E40)","v":16860.599999999999},17197.811999999998,17541.768239999998,17892.603604800002,null,"Less Mortgage Balance",{"$f":"PV(C16/12,(C14-H37)*C15,D45/12,0)","v":125619.00773811282}]
[null,"LessOperating Expenses",null,{"$f":"-D41*$C$31","v":-4959},{"$f":"-E41*$C$31","v":-5058.1799999999994},-5159.3435999999992,-5262.5304719999995,-5367.7810814400009,null,"Before Tax Cash on Sale",{"$f":"K40-K41","v":48943.492261887179}]
[null,"Net Operating Income",null,{"$f":"D41+D42","v":11571},{"$f":"E41+E42","v":11802.419999999998},12038.468399999998,12279.237767999999,12524.822523360002]
[null,"Less Private Mortage Insurance",null,{"$f":"-C17","v":0},{"$f":"-D17","v":0},0,0,0,null,"Net Sales Proceeds",{"$f":"K40","v":174562.5}]
[null,"Less Annualized Mortgage Payments",null,{"$f":"-PMT(C16/C15,C14*C15,-C13,0)*12","v":-7562.7190992969827},{"$f":"D45","v":-7562.7190992969827},{"$f":"E45","v":-7562.7190992969827},-7562.7190992969827,-7562.7190992969827,null,"Less Cost Basis",{"$f":"-C4","v":-175000}]
[null,"Before Tax Cash Flows",null,{"$f":"D43+D45","v":4008.2809007030173},{"$f":"E43+E45","v":4239.7009007030156},4475.7493007030153,4716.5186687030164,4962.1034240630197,null,"Capital Gain (Economic Gain)",{"$f":"K44+K45","v":-437.5}]
[null,"Less Annual Depreciation",null,{"$f":"-$C$6/$C$20","v":-4454.545454545455},{"$f":"-$C$6/$C$20","v":-4454.545454545455},-4454.545454545455,-4454.545454545455,-4454.545454545455,null,"X Capital Gains Rate",{"$f":"C22","v":0.2}]
[null,"Plus Annual Principal Paid",null,{"$f":"-CUMPRINC($C$16/$C$15,$C$14*$C$15,$C$13,D37,D37*C15,0)","v":2677.6442788485115},{"$f":"-CUMPRINC($C$16/$C$15,$C$14*$C$15,$C$13,D37*C15+1,E37*C15,0)","v":2773.4329406401639},{"$f":"-CUMPRINC($C$16/$C$15,$C$14*$C$15,$C$13,E37*$C$15+1,F37*$C$15,0)","v":2872.6482964853603},{"$f":"-CUMPRINC($C$16/$C$15,$C$14*$C$15,$C$13,F37*$C$15+1,G37*$C$15,0)","v":2975.4129311651895},3081.8538147453105,null,"Capital Gains Taxes",{"$f":"IF(K46<=0,0,K46*K47)","v":0}]
[null,"Taxable Income",null,{"$f":"SUM(D46:D48)","v":2231.3797250060738},{"$f":"SUM(E46:E48)","v":2558.5883867977245},2893.8521426429206,3237.386145322751,3589.4117842628752]
[null,"Less Taxes from BTCF",null,{"$f":"-D49*$C$21","v":-669.41391750182208},{"$f":"-E49*$C$21","v":-767.57651603931731},-868.15564279287617,-971.21584359682527,-1076.8235352788624,null,"Accumulated Depreciation",{"$f":"-SUM(D47:H47)","v":22272.727272727276}]
[null,"Savings from Passive Actitivity Loss",null,0,0,0,0,0,null,"X Recapture Tax Rate",{"$f":"C23","v":0.25}]
[null,"After-tax Cash Flow from Operations",null,{"$f":"D46+D50","v":3338.8669832011951},{"$f":"E46+E50","v":3472.124384663698},3607.593657910139,3745.302825106191,3885.2798887841573,null,"Recapture Taxes",{"$f":"IF(K46>0,K50*K51,MAX((K50+K46)*K51,0))","v":5458.8068181818189}]
[null,"Initial Equity Investment",{"$f":"-C9","v":-35000}]
[null,"After-tax Cash on Sale",null,null,null,null,null,{"$f":"K57","v":43484.685443705363},null,"Before Tax Cash on Sale",{"$f":"K42","v":48943.492261887179}]
[null,"Total After-tax Cash Flow",{"$f":"SUM(C52:C54)","v":-35000},{"$f":"SUM(D52:D54)","v":3338.8669832011951},{"$f":"SUM(E52:E54)","v":3472.124384663698},3607.593657910139,3745.302825106191,47369.965332489519,null,"Less Capital Gains Taxes",{"$f":"-K48","v":0}]
[null,null,null,null,null,null,null,null,null,"Less Recapture Taxes",{"$f":"-K52","v":-5458.8068181818189}]
[null,null,null,null,null,null,null,null,null,"After Tax Cash on Sale",{"$f":"SUM(K54:K56)","v":43484.685443705363}]
[]
[null,"Investment Measures"]
[null,"First Year Measures"]
[null,"Payback Period (years)",{"$f":"C9/D55","v":10.482597892067913}]
[null,"Profit Margin",{"$f":"D55/D41","v":0.20198832324266153}]
[null,"Default or Breakeven Ratio",{"$f":"(D42=D45)/D41","v":0}]
[null,"Operating Expense Ratio",{"$f":"-D42/D41","v":0.3}]
[null,"Debt Coverage Ratio",{"$f":"-D43/D45","v":1.5300052597584406}]
[null,"Loan to Value Ratio",{"$f":"C13/C4","v":0.8}]
[null,"Effective Gross Income Multiplier",{"$f":"C4/D41","v":10.58681185722928}]
[null,"Capitalization Rate",{"$f":"D43/C4","v":6.6119999999999998E-2}]
[null,"Before Tax Cash on Cash Return",{"$f":"-D46/C55","v":0.11452231144865764}]
[null,"After Tax Cash on Cash Return",{"$f":"-D55/C55","v":9.5396199520034142E-2}]
[]
[null,"Holding Period Measures"]
[null,"Net Present Value",{"$f":"NPV(C10,D55:H55)+C55","v":2576.0995829571839}]
[null,"Internal Rate of Return",{"$f":"IRR(C55:H55)","v":0.13888624331559574}]

{"sheet":"84604 search","index":2,"n_rows":16,"n_cols":11,"rows_kept":16,"cut":false,"hidden":false,"merged":[]}
[84604]
["Address","Asking Price","Zestimate®","Est. Mortgage PMT","# Beds","# Baths","Sqft","Lot Footage","Days on Market","Year Built","Type"]
["4540 N Foothill Dr, Provo, UT",109000,97185,"$471/mo","--","--","--","--",33,"--","Single Family"]
["740 E 2320 N, Provo, UT",158000,140806,"$683/mo",2,1,2064,"--",27,1938,"Single Family"]
["669 W 1850 N, Provo, UT",168000,173094,"$726/mo",4,2,1957,7840,22,1956,"Single Family"]
["287 E 4640 N, Provo, UT",179000,200364,"$778/mo",3,3,2950,"--",33,1982,"Single Family"]
["2208 N 800 W, Provo, UT",194000,165049,"$843/mo",4,2,1978,12632,7,1981,"Single Family"]
["2983 N 600 E, Provo, UT",216000,271539,"$938/mo",5,3,3146,10018,35,1996,"Single Family"]
["780 E 2730 N, Provo, UT",279000,200944,"$1,210/mo",5,3,2688,"--",27,1968,"Single Family"]
["107 Village Ln, Provo, UT",305000,212925,"$1,323/mo",3,4,2666,"--",35,2002,"Single Family"]
["1450 E 1300 N, Provo, UT",320000,300758,"$1,384/mo","--","--","--",149846,31,"--","Single Family"]
["1489 W 1500 North N St, Provo, UT",335000,290758,"$1,448/mo",5,2.5,3651,"--",31,1980,"Single Family"]
["1290 Maple Ln, Provo, UT",375000,306185,"$1,621/mo",7,4,3597,"--",35,1973,"Single Family"]
["2954 E Meadows Dr, Sundance, UT",579000,276696,"$2,503/mo","--","--","--",53143,24,"--","Single Family"]
["1012 Waterford Ln, Provo, UT",629000,456174,"$2,720/mo",3,3.5,3769,3049,24,2006,"Single Family"]
["254 Stone Gate Ln, Provo, UT",1700000,515194,"$7,350/mo",5,4.5,5594,49222,32,2004,"Single Family"]

{"sheet":"WebQuery","index":3,"n_rows":838,"n_cols":1,"rows_kept":838,"cut":false,"hidden":false,"merged":[]}
[84604]
["Skip to content"]
["Zillow Real Estate"]
["Homes"]
[]
["84604 Homes For Sale"]
["84604 For Sale By Owner"]
["84604 Foreclosures"]
["84604 Open Houses"]
["84604 New Homes"]
["84604 Recent Home Sales"]
["Provo Homes For Sale"]
["Provo For Sale By Owner"]
["Provo Foreclosures"]
["Provo Open Houses"]
["Provo New Homes"]
["Provo Recent Home Sales"]
["Provo Most Expensive Homes"]
[]
["Post a Home For Free"]
["For Sale by Owner"]
["For Sale by Agent"]
["Make Me Move"]
["Rentals"]
[]
["84604 Apartments For Rent"]
["84604 Houses For Rent"]
["Provo Apartments For Rent"]
["Provo Houses For Rent"]
["Provo Most Expensive Rentals"]
[]
["Tools"]
["Post a Rental For Free"]
["Mortgage Rates"]
[]
["Provo Mortgage Rates"]
["Utah Mortgage Rates"]
["Provo Refinance"]
["Utah Refinance"]
[]
["Calculators"]
["Mortgage Calculator"]
["Refinance Calculator"]
["Affordability Calculator"]
[]
["Popular"]
["FHA Loan"]
["Refinance"]
["Home Equity Loan"]
[]
["Tools"]
["Get Custom Quotes"]
["Lender Signup"]
["Help Center"]
["Advice"]
[]
["Real Estate Advice"]
["Zillow FAQs"]
["Home Buying Advice"]
["Home Selling Advice"]
["Mortgage Advice"]
["Rental Advice"]
["Foreclosure Center"]
[]
["Tools"]
["Ask a Question"]
["Find a Pro"]
[]
["Find a Real Estate Professional"]
["Provo Real Estate Agents "]
["Provo Mortgage Lenders "]
["Provo Property Managers "]
["Provo Home Improvement Pros "]
["Review an Agent, Lender or Pro "]
[]
["Marketing on Zillow"]
["Real Estate Agent Advertising "]
["Join the Professional Directory "]
["Local Info"]
[]
["Provo Overview "]
["Provo Home Prices & Values "]
["Provo Demographics "]
["Provo Photos "]
["Provo Schools "]
["Provo Homes "]
["Utah Home Prices & Values "]
[]
["Popular"]
["Real Estate Market Reports"]
["Compare Places"]
["Blogs"]
[]
["Zillow Blog"]
["Zillow Pros Blog"]
["Zillow Research"]
["Zillow Engineering"]
["More ▼"]
[]
["What Zillow Offers"]
["Dueling Digs"]
["Real Estate Advertising"]
["Widgets, Badges & Data"]
["Zillow Visuals"]
["Help"]
[]
["For Pros ▼"]
[]
["Agents"]
["Rental Pro"]
["Mobile"]
["Sign In"]
["Find home values and listings Search"]
["Show:"]
["Filter Save Search "]
[]
[]
["For Sale"]
[]
["By Agent"]
["By Owner"]
["New Homes"]
["Foreclosures"]
[]
["These properties are currently listed for sale. They are owned by a bank or a lender who took ownership through foreclosure proceedings. These are also known as bank-owned or real estate owned (REO)."]
["Monthly Payment"]
["What's this?"]
["Close"]
[]
["What Does Monthly Payment Mean?"]
["Enter a price range and the monthly payment shown will apply to for-sale or for-rent listings, if both filters are selected. Or, enter a monthly payment range (e.g., $1,500-$2,000) to see available rentals or homes for sale in that price range. Monthly payment is calculated from using current Zillow Mortgage Marketplace quotes for 30-year fixed rate at 3.20%, with 20% down and includes principal and interest."]
[]
["Go"]
["Pre-Market"]
["Properties that may be coming to the market soon."]
[]
["Foreclosed"]
[" Pre-Foreclosure"]
[]
["The lender initiated foreclosure proceedings on these properties because the owners were in default on their loan obligations. Pre-foreclosures also include properties for which a foreclosure auction is scheduled."]
["FREE account required"]
["Make Me Move"]
["For Rent"]
["Recently Sold"]
["Home type"]
[]
["Single Family"]
["Condo/Apartment"]
["Multi Family"]
["Manufactured"]
["Lots/Land"]
["Show only"]
[]
["Open Houses only"]
["Pets Allowed"]
["On-Site Parking"]
["In-Unit Laundry"]
["Close"]
["Price"]
[]
["Go"]
["Rent"]
[]
["Go"]
["Beds"]
["Baths"]
["Square Feet"]
[]
["Go"]
["Lot Size"]
[]
["Go"]
["Year Built"]
[]
["Go"]
["Days on/Sold in last"]
["Keywords"]
["Apply "]
["▾ more filters"]
["Save this search and be notified when new listings are added."]
[]
["A Rent Zestimate® is Zillow's estimated monthly rental price, computed using a proprietary formula. It is a starting point in determining the monthly rental price for a specific property. Learn more | Post a home for rent for FREE"]
[]
["A Zestimate® home valuation is Zillow's estimated market value. It is not an appraisal. Use it as a starting point to determine a home's value. Learn more | Post a home for sale for FREE"]
[]
["Make Me Move is a free and easy way to tell others the price you'd be willing to sell your home for."]
[]
["This property is scheduled to be sold at a foreclosure auction. Learn more"]
[]
["The lender initiated foreclosure proceedings on these properties because the owners were in default on their loan obligations."]
[]
["These properties are owned by a bank or a lender who took ownership through foreclosure proceedings. They may soon be listed for sale."]
[]
["A Foreclosure Estimate is the price Zillow predicts a property will sell for if it's listed as a foreclosure (bank-owned property or real estate owned). Learn more"]
[84604]
["Sort: Featured ▾"]
[]
["Featured"]
["Days on Zillow"]
["Price (Low to High)"]
["Price (High to Low)"]
["Bedrooms"]
["Bathrooms"]
["Living Area"]
["Year Built"]
["Lot Area"]
["Zestimate (High to Low)"]
["Zestimate (Low to High)"]
["Loading results..."]
["2208 N 800 W, Provo, UT"]
["11 Photos"]
["2208 N 800 W, Provo, UT"]
[]
[" House For Sale:$194,900"]
["Zestimate®: $165,049"]
["Est. Mortgage: $843/mo"]
[]
["See current rates"]
[]
["Beds: 4"]
["Baths: 2.0"]
["Sqft: 1,978"]
["Lot: 12,632"]
["Days on Zillow: 7"]
["Built: 1981"]
["Single Family"]
["RE/MAX Results-Provo"]
[]
["Maps"]
["Save"]
["Comps"]
["164 W Stone Gate Ln N, Provo, UT"]
["7 Photos"]
["164 W Stone Gate Ln N, Provo, UT"]
[]
[" Lot/Land For Sale:$224,900"]
["Price Cut: $24,100(Nov 22)"]
["Zestimate®: --"]
["Est. Mortgage: $972/mo"]
[]
["Beds: --"]
["Baths: --"]
["Sqft: --"]
["Lot: 24,829"]
["Days on Zillow: 17"]
["Built: --"]
["Vacant Land"]
[]
["Maps"]
["Save"]
["Comps"]
["669 W 1850 N, Provo, UT"]
["1 Photo"]
["669 W 1850 N, Provo, UT"]
[]
[" House For Sale:$168,000"]
["Zestimate®: $173,094"]
["Est. Mortgage: $726/mo"]
[]
["See current rates"]
[]
["Beds: 4"]
["Baths: 2.0"]
["Sqft: 1,957"]
["Lot: 7,840"]
["Days on Zillow: 22"]
["Built: 1956"]
["Single Family"]
["Re/Max Results - Sp..."]
[]
["Maps"]
["Save"]
["Comps"]
["1012 Waterford Ln, Provo, UT"]
["61 Photos"]
["1012 Waterford Ln, Provo, UT"]
[]
[" House For Sale:$629,000"]
["Zestimate®: $456,174"]
["Est. Mortgage: $2,720/mo"]
[]
["See current rates"]
[]
["Beds: 3"]
["Baths: 3.5"]
["Sqft: 3,769"]
["Lot: 3,049"]
["Days on Zillow: 24"]
["Built: 2006"]
["Single Family"]
[]
["Maps"]
["Save"]
["Comps"]
["2954 E Meadows Dr, Sundance, UT"]
["1 Photo"]
["2954 E Meadows Dr, Sundance, UT"]
[]
[" House For Sale:$579,000"]
["Zestimate®: $276,696"]
["Est. Mortgage: $2,503/mo"]
[]
["See current rates"]
[]
["Beds: --"]
["Baths: --"]
["Sqft: --"]
["Lot: 53,143"]
["Days on Zillow: 24"]
["Built: --"]
["Single Family"]
["Vintage Properties ..."]
[]
["Maps"]
["Save"]
["Comps"]
["780 E 2730 N, Provo, UT"]
["31 Photos"]
["780 E 2730 N, Provo, UT"]
[]
[" House For Sale:$279,900"]
["Zestimate®: $200,944"]
["Est. Mortgage: $1,210/mo"]
[]
["See current rates"]
[]
["Beds: 5"]
["Baths: 3.0"]
["Sqft: 2,688"]
["Lot: --"]
["Days on Zillow: 27"]
["Built: 1968"]
["Single Family"]
["Rock Canyon Real Es..."]
[]
["Maps"]
["Save"]
["Comps"]
["740 E 2320 N, Provo, UT"]
["13 Photos"]
["740 E 2320 N, Provo, UT"]
[]
[" House For Sale:$158,000"]
["Zestimate®: $140,806"]
["Est. Mortgage: $683/mo"]
[]
["See current rates"]
[]
["Beds: 2"]
["Baths: 1.0"]
["Sqft: 2,064"]
["Lot: --"]
["Days on Zillow: 27"]
["Built: 1938"]
["Single Family"]
["@Home Realty Network"]
[]
["Maps"]
["Save"]
["Comps"]
["1450 E 1300 N, Provo, UT"]
["20 Photos"]
["1450 E 1300 N, Provo, UT"]
[]
[" House For Sale:$320,000"]
["Est. Mortgage: $1,384/mo"]
[]
["See current rates"]
[]
["Beds: --"]
["Baths: --"]
["Sqft: --"]
["Lot: 149,846"]
["Days on Zillow: 31"]
["Built: --"]
["Single Family"]
["Summit Sotheby's In..."]
[]
["Maps"]
["Save"]
["Comps"]
["1489 W 1500 North N St, Provo, UT"]
["43 Photos"]
["1489 W 1500 North N St, Provo, UT"]
[]
[" House For Sale:$335,000"]
["Zestimate®: $290,758"]
["Est. Mortgage: $1,448/mo"]
[]
["See current rates"]
[]
["Beds: 5"]
["Baths: 2.5"]
["Sqft: 3,651"]
["Lot: --"]
["Days on Zillow: 31"]
["Built: 1980"]
["Single Family"]
["American Fork - WEI..."]
[]
["Maps"]
["Save"]
["Comps"]
["254 Stone Gate Ln, Provo, UT"]
["43 Photos"]
["254 Stone Gate Ln, Provo, UT"]
[]
[" House For Sale:$1,700,000"]
["Zestimate®: $515,194"]
["Est. Mortgage: $7,350/mo"]
[]
["See current rates"]
[]
["Beds: 5"]
["Baths: 4.5"]
["Sqft: 5,594"]
["Lot: 49,222"]
["Days on Zillow: 32"]
["Built: 2004"]
["Single Family"]
[]
["Maps"]
["Save"]
["Comps"]
["287 E 4640 N, Provo, UT"]
["7 Photos"]
["287 E 4640 N, Provo, UT"]
[]
[" House For Sale:$179,900"]
["Zestimate®: $200,364"]
["Est. Mortgage: $778/mo"]
[]
["See current rates"]
[]
["Beds: 3"]
["Baths: 3.0"]
["Sqft: 2,950"]
["Lot: --"]
["Days on Zillow: 33"]
["Built: 1982"]
["Single Family"]
["Osmond Real Estate,..."]
[]
["Maps"]
["Save"]
["Comps"]
["4540 N Foothill Dr, Provo, UT"]
["4 Photos"]
["4540 N Foothill Dr, Provo, UT"]
[]
[" House For Sale:$109,000"]
["Est. Mortgage: $471/mo"]
[]
["See current rates"]
[]
["Beds: --"]
["Baths: --"]
["Sqft: --"]
["Lot: --"]
["Days on Zillow: 33"]
["Built: --"]
["Single Family"]
["CENTURY 21 Bushnell"]
[]
["Maps"]
["Save"]
["Comps"]
["1290 Maple Ln, Provo, UT"]
["6 Photos"]
["1290 Maple Ln, Provo, UT"]
[]
[" House For Sale:$375,000"]
["Zestimate®: $306,185"]
["Est. Mortgage: $1,621/mo"]
[]
["See current rates"]
[]
["Beds: 7"]
["Baths: 4.0"]
["Sqft: 3,597"]
["Lot: --"]
["Days on Zillow: 35"]
["Built: 1973"]
["Single Family"]
["@Home Realty Network"]
[]
["Maps"]
["Save"]
["Comps"]
["107 Village Ln, Provo, UT"]
["43 Photos"]
["107 Village Ln, Provo, UT"]
[]
[" House For Sale:$305,900"]
["Price Cut: $4,000(Nov 13)"]
["Zestimate®: $212,925"]
["Est. Mortgage: $1,323/mo"]
[]
["Beds: 3"]
["Baths: 4.0"]
["Sqft: 2,666"]
["Lot: --"]
["Days on Zillow: 35"]
["Built: 2002"]
["Single Family"]
["@Home Realty Network"]
[]
["Maps"]
["Save"]
["Comps"]
["2983 N 600 E, Provo, UT"]
["9 Photos"]
["2983 N 600 E, Provo, UT"]
[]
[" House For Sale:$216,900"]
["Zestimate®: $271,539"]
["Est. Mortgage: $938/mo"]
[]
["See current rates"]
[]
["Beds: 5"]
["Baths: 3.0"]
["Sqft: 3,146"]
["Lot: 10,018"]
["Days on Zillow: 35"]
["Built: 1996"]
["Single Family"]
["Vintage Properties ..."]
[]
["Maps"]
["Save"]
["Comps"]
["1029 Windsor Dr, Provo, UT"]
["46 Photos"]
["1029 Windsor Dr, Provo, UT"]
[]
[" House For Sale:$389,900"]
["Est. Mortgage: $1,686/mo"]
[]
["See current rates"]
[]
["Beds: 6"]
["Baths: 3.0"]
["Sqft: 4,536"]
["Lot: 17,424"]
["Days on Zillow: 38"]
["Built: 1978"]
["Single Family"]
["Orem Real Estate Group"]
[]
["Maps"]
["Save"]
["Comps"]
["469 E 3125 N, Provo, UT"]
["18 Photos"]
["469 E 3125 N, Provo, UT"]
[]
[" House For Sale:$383,000"]
["Price Cut: $10,000(Nov 28)"]
["Est. Mortgage: $1,656/mo"]
[]
["Beds: 6"]
["Baths: 3.0"]
["Sqft: 4,864"]
["Lot: --"]
["Days on Zillow: 47"]
["Built: 1987"]
["Single Family"]
["CENTURY 21 Bushnell"]
[]
["Maps"]
["Save"]
["Comps"]
["750 E 3900 N, Provo, UT"]
["20 Photos"]
["750 E 3900 N, Provo, UT"]
[]
[" House For Sale:$650,000"]
["Zestimate®: $561,143"]
["Est. Mortgage: $2,810/mo"]
[]
["See current rates"]
[]
["Beds: 6"]
["Baths: 5.0"]
["Sqft: 6,900"]
["Lot: --"]
["Days on Zillow: 49"]
["Built: 2005"]
["Single Family"]
["Utah Home Central"]
[]
["Maps"]
["Save"]
["Comps"]
["1913 N 1640 W, Provo, UT"]
["45 Photos"]
["1913 N 1640 W, Provo, UT"]
[]
[" House For Sale:$1,750,000"]
["Zestimate®: $689,510"]
["Est. Mortgage: $7,566/mo"]
[]
["See current rates"]
[]
["Beds: 6"]
["Baths: 6.5"]
["Sqft: 8,572"]
["Lot: 30,492"]
["Days on Zillow: 51"]
["Built: 2007"]
["Single Family"]
[]
["Maps"]
["Save"]
["Comps"]
["1660 Willowbrook Dr # C, Provo, UT"]
["32 Photos"]
["1660 Willowbrook Dr # C, Provo, UT"]
[]
[" House For Sale:$97,000"]
["Zestimate®: $117,496"]
["Est. Mortgage: $419/mo"]
[]
["See current rates"]
[]
["Beds: 3"]
["Baths: 1.5"]
["Sqft: 1,160"]
["Lot: 1,306"]
["Days on Zillow: 51"]
["Built: 1980"]
["Townhouse"]
[]
["Maps"]
["Save"]
["Comps"]
["1660 Willowbrook Dr, Provo, UT"]
["21 Photos"]
["1660 Willowbrook Dr, Provo, UT"]
[]
[" Condo For Sale:$97,000"]
["Zestimate®: $102,165"]
["Est. Mortgage: $419/mo"]
[]
["See current rates"]
[]
["Beds: 3"]
["Baths: 1.5"]
["Sqft: 1,160"]
["Lot: 1,306"]
["Days on Zillow: 55"]
["Built: 1980"]
["Condo"]
["Prudential Real Estate"]
[]
["Maps"]
["Save"]
["Comps"]
["1547 Riverside Ave # 37, Provo, UT"]
["1 Photo"]
["1547 Riverside Ave # 37, Provo, UT"]
[]
[" Condo For Sale:$110,995"]
["Zestimate®: $111,095"]
["Est. Mortgage: $480/mo"]
[]
["See current rates"]
[]
["Beds: 3"]
["Baths: 2.0"]
["Sqft: 1,060"]
["Lot: --"]
["Days on Zillow: 55"]
["Built: 1994"]
["Condo"]
["Quackenbush Realty"]
[]
["Maps"]
["Save"]
["Comps"]
["1266 W 1400 N, Provo, UT"]
["16 Photos"]
["1266 W 1400 N, Provo, UT"]
[]
[" House For Sale:$359,000"]
["Zestimate®: $344,144"]
["Est. Mortgage: $1,552/mo"]
[]
["See current rates"]
[]
["Beds: 4"]
["Baths: 4.0"]
["Sqft: 4,212"]
["Lot: --"]
["Days on Zillow: 55"]
["Built: 1990"]
["Single Family"]
["ARI Realty"]
[]
["Maps"]
["Save"]
["Comps"]
["1001 Waterford Ln, Provo, UT"]
["20 Photos"]
["1001 Waterford Ln, Provo, UT"]
[]
[" House For Sale:$648,000"]
["Zestimate®: $546,153"]
["Est. Mortgage: $2,802/mo"]
[]
["See current rates"]
[]
["Beds: 3"]
["Baths: 4.0"]
["Sqft: 3,700"]
["Lot: --"]
["Days on Zillow: 63"]
["Built: 2005"]
["Single Family"]
["R and R Realty, LLC"]
[]
["Maps"]
["Save"]
["Comps"]
["1047 Briar Ave, Provo, UT"]
["1 Photo"]
["1047 Briar Ave, Provo, UT"]
[]
[" House For Sale:$195,000"]
["Zestimate®: $169,396"]
["Est. Mortgage: $843/mo"]
[]
["See current rates"]
[]
["Beds: 3"]
["Baths: 2.0"]
["Sqft: 1,827"]
["Lot: 10,890"]
["Days on Zillow: 63"]
["Built: 1922"]
["Single Family"]
["Quackenbush Realty"]
[]
["Maps"]
["Save"]
["Comps"]
[]
[1]
[2]
[3]
[4]
[5]
[6]
["Next page »"]
["Tip: save this search and get email alerts when new listings hit the market."]
["Top Cities"]
[]
[]
["Atlanta real estate"]
["Baltimore real estate"]
["Denver real estate"]
["Jacksonville real estate"]
["Oklahoma City real estate"]
["Orlando real estate"]
["Phoenix real estate"]
["San Antonio real estate"]
["San Diego real estate"]
["San Jose real estate"]
["Seattle real estate"]
["Nearby Cities"]
[]
[]
["Cedar Hills Real Estate"]
["Charleston Real Estate"]
["Daniel Real Estate"]
["Highland Real Estate"]
["Lindon Real Estate"]
["Midway Real Estate"]
["Orem Real Estate"]
["Pleasant Grove Real Estate"]
["Provo Real Estate"]
["Wallsburg Real Estate"]
["Nearby Zip Codes"]
[]
[]
["84601 Real Estate"]
["84602 Real Estate"]
["84603 Real Estate"]
["84604 Real Estate"]
["84605 Real Estate"]
["84606 Real Estate"]
["Why use Zillow?"]
[]
["Zillow helps you find the newest Provo real estate listings. By analyzing information on thousands of houses for sale in Provo, Utah and across the United States, we calculate home values (Zestimates) and the Zillow Home Value Price Index for Provo proper, its neighborhoods, and surrounding areas. There are currently 138 for sale listings in Provo zip codes, including condos, duplexes, land, luxury, waterfront, and the most expensive listings or rentals. If you're looking to rent, check out our extensive list of luxury apartments, houses to rent in Provo or apartments to rent in Provo. We make it easy to find your dream home by filtering home types, price, and size. Filtering with keyword search is also possible, like \"waterfront\" or \"pool\" in Provo. If you're looking specifically for homes in 84604 or apartments in 84604, we've got you covered there as well."]
[]
["About Us"]
["About Zestimates"]
["Jobs"]
["Press"]
["Investors"]
["Help"]
["Advertising"]
["Terms of Use"]
["Privacy Policy"]
[]
["Zillow Research"]
["Zillow Blog"]
[]
["Yahoo!-Zillow Real Estate Network"]
["© 2006-2012 Zillow"]
[]
["Close"]
["Premier Agents What's this?"]
["Close"]
[]
["Premier Agents are local, knowledgeable real estate professionals ready to help you find or sell the perfect home."]
[]
["Are you an agent? To learn how to appear here, contact us at 866-324-4005."]
["Julie Partridge Stuart"]
["Julie Partridge Stuart"]
["(9 reviews)"]
["Call: (801) 960-3384"]
["Denise Martin"]
["Denise Martin"]
["(3 reviews)"]
["Call: (801) 960-3418"]
[]
["NEW! See foreclosures in your area - for free! Sign in required to see details "]
["Close"]
[]
["Only showing 500 homes. Zoom in, or use filters to narrow your search."]
[]
["Displaying unmapped homes. See mappable homes."]
["close ad"]
["View choices"]
["Street ViewAerial"]
["No Street View available for this property."]

{"sheet":"Utah County search","index":4,"n_rows":17,"n_cols":10,"rows_kept":17,"cut":false,"hidden":false,"merged":[]}
["Utah"]
["Address","Rent $","Rent Zestimate®","# Beds","# Baths","Sqft","Lot Footage","Days on Market","Year Built","Type"]
["383 N 400 W, Provo, UT",750,"$915/mo",2,1,1100,3484,4,1927,"Single Family"]
["283 S 1050 W APT 93, Provo, UT",950,"$848/mo",3,2,1185,43560,1,1997,"Condo"]
["1401 Sandhill Rd # 12522653, Orem, UT",970,"--",2,2,1072,"--",3,"--","Apartment"]
["1401 Sandhill Rd # 12522655, Orem, UT",970,"--",2,2,1017,"--",3,"--","Apartment"]
["929 W 670 S UNIT 9, Pleasant Grove, UT",1195,"$1,032/mo",3,2,1306,1306,5,2004,"Condo"]
["184 Woodland Dr, Orem, UT",1250,"$1,245/mo",4,1.25,1609,9147,3,1965,"Single Family"]
["396 E 1010 S, Orem, UT",1295,"$884/mo",4,1,1500,6534,5,1943,"Single Family"]
["626 N 550 E, American Fork, UT",1300,"$1,394/mo",4,2,2368,"--",2,1985,"Single Family"]
["1494 Venetian Way, Saratoga Springs, UT",1300,"$1,220/mo",3,2.5,2214,871,5,2009,"Townhouse"]
["100 Teal Rd, Saratoga Springs, UT",1395,"$1,786/mo",4,3,4114,12632,1,1998,"Single Family"]
["7363 Aspen Way, Eagle Mountain, UT",1450,"$1,456/mo",5,2,2127,5662,5,2006,"Single Family"]
["10435 Sugarloaf Dr, Cedar Hills, UT",1500,"$1,496/mo",5,3,2900,5662,3,2003,"Single Family"]
["1855 Stadium Cir, Provo, UT",1650,"$1,599/mo",5,3,2688,10018,3,1965,"Single Family"]
["1929 W Golden Pond Way, Orem, UT",1795,"$1,283/mo",4,3,3512,2178,5,2005,"Single Family"]
["397 N Willow H Avenue N Ave, Lehi, UT",3400,"--",7,5,2600,"--",3,"--","Single Family"]

{"sheet":"WebQueryRents","index":5,"n_rows":728,"n_cols":1,"rows_kept":728,"cut":false,"hidden":false,"merged":[]}
["Utah"]
["Skip to content"]
["Zillow Real Estate"]
["Homes"]
[]
["Utah Homes For Sale"]
["Utah For Sale By Owner"]
["Utah Foreclosures"]
["Utah Open Houses"]
["Utah New Homes"]
["Utah Recent Home Sales"]
["Utah Most Expensive Homes"]
[]
["Post a Home For Free"]
["For Sale by Owner"]
["For Sale by Agent"]
["Make Me Move"]
["Rentals"]
[]
["Utah Apartments For Rent"]
["Utah Houses For Rent"]
["Utah Most Expensive Rentals"]
[]
["Tools"]
["Post a Rental For Free"]
["Mortgage Rates"]
[]
["Utah Mortgage Rates"]
["Utah Refinance"]
[]
["Calculators"]
["Mortgage Calculator"]
["Refinance Calculator"]
["Affordability Calculator"]
[]
["Popular"]
["FHA Loan"]
["Refinance"]
["Home Equity Loan"]
[]
["Tools"]
["Get Custom Quotes"]
["Lender Signup"]
["Help Center"]
["Advice"]
[]
["Real Estate Advice"]
["Zillow FAQs"]
["Home Buying Advice"]
["Home Selling Advice"]
["Mortgage Advice"]
["Rental Advice"]
["Foreclosure Center"]
[]
["Tools"]
["Ask a Question"]
["Find a Pro"]
[]
["Find a Real Estate Professional"]
["Utah Real Estate Agents "]
["Utah Mortgage Lenders "]
["Utah Property Managers "]
["Utah Home Improvement Pros "]
["Review an Agent, Lender or Pro "]
[]
["Marketing on Zillow"]
["Real Estate Agent Advertising "]
["Join the Professional Directory "]
["Local Info"]
[]
["Utah Home Prices & Values "]
[]
["Popular"]
["Real Estate Market Reports"]
["Compare Places"]
["Blogs"]
[]
["Zillow Blog"]
["Zillow Pros Blog"]
["Zillow Research"]
["Zillow Engineering"]
["More ▼"]
[]
["What Zillow Offers"]
["Dueling Digs"]
["Real Estate Advertising"]
["Widgets, Badges & Data"]
["Zillow Visuals"]
["Help"]
[]
["For Pros ▼"]
[]
["Agents"]
["Rental Pro"]
["Mobile"]
["Sign In"]
["Find home values and listings Search"]
["Show:"]
["Filter Save Search "]
[]
[]
["For Sale"]
[]
["By Agent"]
["By Owner"]
["New Homes"]
["Foreclosures"]
[]
["These properties are currently listed for sale. They are owned by a bank or a lender who took ownership through foreclosure proceedings. These are also known as bank-owned or real estate owned (REO)."]
["Monthly Payment"]
["What's this?"]
["Close"]
[]
["What Does Monthly Payment Mean?"]
["Enter a price range and the monthly payment shown will apply to for-sale or for-rent listings, if both filters are selected. Or, enter a monthly payment range (e.g., $1,500-$2,000) to see available rentals or homes for sale in that price range. Monthly payment is calculated from using current Zillow Mortgage Marketplace quotes for 30-year fixed rate at 3.20%, with 20% down and includes principal and interest."]
[]
["Go"]
["Pre-Market"]
["Properties that may be coming to the market soon."]
[]
["Foreclosed"]
[" Pre-Foreclosure"]
[]
["The lender initiated foreclosure proceedings on these properties because the owners were in default on their loan obligations. Pre-foreclosures also include properties for which a foreclosure auction is scheduled."]
["FREE account required"]
["Make Me Move"]
["For Rent"]
["Recently Sold"]
["Home type"]
[]
["Single Family"]
["Condo/Apartment"]
["Multi Family"]
["Manufactured"]
["Lots/Land"]
["Show only"]
[]
["Open Houses only"]
["Pets Allowed"]
["On-Site Parking"]
["In-Unit Laundry"]
["Close"]
["Price"]
[]
["Go"]
["Rent"]
[]
["Go"]
["Beds"]
["Baths"]
["Square Feet"]
[]
["Go"]
["Lot Size"]
[]
["Go"]
["Year Built"]
[]
["Go"]
["Days on/Sold in last"]
["Keywords"]
["Apply "]
["▾ more filters"]
["Save this search and be notified when new listings are added."]
[]
["A Rent Zestimate® is Zillow's estimated monthly rental price, computed using a proprietary formula. It is a starting point in determining the monthly rental price for a specific property. Learn more | Post a home for rent for FREE"]
[]
["A Zestimate® home valuation is Zillow's estimated market value. It is not an appraisal. Use it as a starting point to determine a home's value. Learn more | Post a home for sale for FREE"]
[]
["Make Me Move is a free and easy way to tell others the price you'd be willing to sell your home for."]
[]
["This property is scheduled to be sold at a foreclosure auction. Learn more"]
[]
["The lender initiated foreclosure proceedings on these properties because the owners were in default on their loan obligations."]
[]
["These properties are owned by a bank or a lender who took ownership through foreclosure proceedings. They may soon be listed for sale."]
[]
["A Foreclosure Estimate is the price Zillow predicts a property will sell for if it's listed as a foreclosure (bank-owned property or real estate owned). Learn more"]
["Utah County "]
["Sort: Days on Zillow ▾"]
[]
["Featured"]
["Days on Zillow"]
["Rent (low to high)"]
["Rent (high to low)"]
["Bedrooms"]
["Bathrooms"]
["Living Area"]
["Year Built"]
["Lot Area"]
["Zestimate (High to Low)"]
["Zestimate (Low to High)"]
["Loading results..."]
["283 S 1050 W APT 93, Provo, UT"]
["1 Photo"]
["283 S 1050 W APT 93, Provo, UT"]
[]
[" Condo For Rent:$950/mo"]
["Rent Zestimate®: $848/mo"]
["Pets: No"]
["Availability: now"]
[]
["Beds: 3"]
["Baths: 2.0"]
["Sqft: 1,185"]
["Lot: 43,560"]
["Days on Zillow: 1"]
["Built: 1997"]
["Condo"]
[]
["Maps"]
["Save"]
["100 Teal Rd, Saratoga Springs, UT"]
["29 Photos"]
["100 Teal Rd, Saratoga Springs, UT"]
[]
[" House For Rent:$1,395/mo"]
["Rent Zestimate®: $1,786/mo"]
["Pets: No"]
["Availability: now"]
[]
["Beds: 4"]
["Baths: 3.0"]
["Sqft: 4,114"]
["Lot: 12,632"]
["Days on Zillow: 1"]
["Built: 1998"]
["Single Family"]
[]
["Maps"]
["Save"]
["626 N 550 E, American Fork, UT"]
["18 Photos"]
["626 N 550 E, American Fork, UT"]
[]
[" House For Rent:$1,300/mo"]
["Rent Zestimate®: $1,394/mo"]
["Pets: --"]
["Availability: now"]
[]
["Beds: 4"]
["Baths: 2.0"]
["Sqft: 2,368"]
["Lot: --"]
["Days on Zillow: 2"]
["Built: 1985"]
["Single Family"]
[]
["Maps"]
["Save"]
["184 Woodland Dr, Orem, UT"]
["8 Photos"]
["184 Woodland Dr, Orem, UT"]
[]
[" House For Rent:$1,250/mo"]
["Rent Zestimate®: $1,245/mo"]
["Pets: cats, small dogs"]
["Availability: 02/01/2013"]
[]
["Beds: 4"]
["Baths: 1.25"]
["Sqft: 1,609"]
["Lot: 9,147"]
["Days on Zillow: 3"]
["Built: 1965"]
["Single Family"]
[]
["Maps"]
["Save"]
["1401 Sandhill Rd # 12522653, Orem, UT"]
["1 Photo"]
["1401 Sandhill Rd # 12522653, Orem, UT"]
[]
[" Apt. For Rent:$970/mo"]
["Rent Zestimate®: --"]
["Pets: cats, small dogs"]
["Availability: now"]
[]
["Beds: 2"]
["Baths: 2.0"]
["Sqft: 1,072"]
["Lot: --"]
["Days on Zillow: 3"]
["Built: --"]
["Apartment"]
[]
["Maps"]
["Save"]
["1401 Sandhill Rd # 12522655, Orem, UT"]
["1 Photo"]
["1401 Sandhill Rd # 12522655, Orem, UT"]
[]
[" Apt. For Rent:$970/mo"]
["Rent Zestimate®: --"]
["Pets: cats, small dogs"]
["Availability: now"]
[]
["Beds: 2"]
["Baths: 2.0"]
["Sqft: 1,017"]
["Lot: --"]
["Days on Zillow: 3"]
["Built: --"]
["Apartment"]
[]
["Maps"]
["Save"]
["1401 Sandhill Rd # 12522656, Orem, UT"]
["1 Photo"]
["1401 Sandhill Rd # 12522656, Orem, UT"]
[]
[" Apt. For Rent:$1,115/mo"]
["Rent Zestimate®: --"]
["Pets: cats, small dogs"]
["Availability: now"]
[]
["Beds: 3"]
["Baths: 2.0"]
["Sqft: 1,174"]
["Lot: --"]
["Days on Zillow: 3"]
["Built: --"]
["Apartment"]
[]
["Maps"]
["Save"]
["10435 Sugarloaf Dr, Cedar Hills, UT"]
["13 Photos"]
["10435 Sugarloaf Dr, Cedar Hills, UT"]
[]
[" House For Rent:$1,500/mo"]
["Rent Zestimate®: $1,496/mo"]
["Pets: --"]
["Availability: now"]
[]
["Beds: 5"]
["Baths: 3.0"]
["Sqft: 2,900"]
["Lot: 5,662"]
["Days on Zillow: 3"]
["Built: 2003"]
["Single Family"]
[]
["Maps"]
["Save"]
["397 N Willow H Avenue N Ave, Lehi, UT"]
["397 N Willow H Avenue N Ave, Lehi, UT"]
[]
[" House For Rent:$3,400/mo"]
["Rent Zestimate®: --"]
["Pets: --"]
["Availability: now"]
[]
["Beds: 7"]
["Baths: 5.0"]
["Sqft: 2,600"]
["Lot: --"]
["Days on Zillow: 3"]
["Built: --"]
["Single Family"]
[]
["Save"]
["1855 Stadium Cir, Provo, UT"]
["16 Photos"]
["1855 Stadium Cir, Provo, UT"]
[]
[" House For Rent:$1,650/mo"]
["Rent Zestimate®: $1,599/mo"]
["Pets: No"]
["Availability: now"]
[]
["Beds: 5"]
["Baths: 3.0"]
["Sqft: 2,688"]
["Lot: 10,018"]
["Days on Zillow: 3"]
["Built: 1965"]
["Single Family"]
[]
["Maps"]
["Save"]
["383 N 400 W, Provo, UT"]
["4 Photos"]
["383 N 400 W, Provo, UT"]
[]
[" House For Rent:$750/mo"]
["Rent Zestimate®: $915/mo"]
["Pets: --"]
["Availability: now"]
[]
["Beds: 2"]
["Baths: 1.0"]
["Sqft: 1,100"]
["Lot: 3,484"]
["Days on Zillow: 4"]
["Built: 1927"]
["Single Family"]
[]
["Maps"]
["Save"]
["1494 Venetian Way, Saratoga Springs, UT"]
["8 Photos"]
["1494 Venetian Way, Saratoga Springs, UT"]
[]
[" House For Rent:$1,300/mo"]
["Rent Zestimate®: $1,220/mo"]
["Pets: No"]
["Availability: now"]
[]
["Beds: 3"]
["Baths: 2.5"]
["Sqft: 2,214"]
["Lot: 871"]
["Days on Zillow: 5"]
["Built: 2009"]
["Townhouse"]
[]
["Maps"]
["Save"]
["396 E 1010 S, Orem, UT"]
["10 Photos"]
["396 E 1010 S, Orem, UT"]
[]
[" House For Rent:$1,295/mo"]
["Rent Zestimate®: $884/mo"]
["Pets: No"]
["Availability: now"]
[]
["Beds: 4"]
["Baths: 1.0"]
["Sqft: 1,500"]
["Lot: 6,534"]
["Days on Zillow: 5"]
["Built: 1943"]
["Single Family"]
[]
["Maps"]
["Save"]
["929 W 670 S UNIT 9, Pleasant Grove, UT"]
["17 Photos"]
["929 W 670 S UNIT 9, Pleasant Grove, UT"]
[]
[" Condo For Rent:$1,195/mo"]
["Rent Zestimate®: $1,032/mo"]
["Pets: cats, small dogs"]
["Availability: now"]
[]
["Beds: 3"]
["Baths: 2.0"]
["Sqft: 1,306"]
["Lot: 1,306"]
["Days on Zillow: 5"]
["Built: 2004"]
["Condo"]
[]
["Maps"]
["Save"]
["1929 W Golden Pond Way, Orem, UT"]
["7 Photos"]
["1929 W Golden Pond Way, Orem, UT"]
[]
[" House For Rent:$1,795/mo"]
["Rent Zestimate®: $1,283/mo"]
["Pets: --"]
["Availability: now"]
[]
["Beds: 4"]
["Baths: 3.0"]
["Sqft: 3,512"]
["Lot: 2,178"]
["Days on Zillow: 5"]
["Built: 2005"]
["Single Family"]
[]
["Maps"]
["Save"]
["7363 Aspen Way, Eagle Mountain, UT"]
["20 Photos"]
["7363 Aspen Way, Eagle Mountain, UT"]
[]
[" House For Rent:$1,450/mo"]
["Rent Zestimate®: $1,456/mo"]
["Pets: cats, large dogs,..."]
["Availability: now"]
[]
["Beds: 5"]
["Baths: 2.0"]
["Sqft: 2,127"]
["Lot: 5,662"]
["Days on Zillow: 5"]
["Built: 2006"]
["Single Family"]
[]
["Maps"]
["Save"]
["635 E 110 S, American Fork, UT"]
["16 Photos"]
["635 E 110 S, American Fork, UT"]
[]
[" House For Rent:$1,450/mo"]
["Rent Zestimate®: $1,136/mo"]
["Pets: No"]
["Availability: now"]
[]
["Beds: 3"]
["Baths: 2.5"]
["Sqft: 2,098"]
["Lot: 435"]
["Days on Zillow: 6"]
["Built: 2010"]
["Townhouse"]
[]
["Maps"]
["Save"]
["1219 E 540 N, Spanish Fork, UT"]
["1219 E 540 N, Spanish Fork, UT"]
[]
[" House For Rent:$1,200/mo"]
["Rent Zestimate®: $1,088/mo"]
["Pets: small dogs"]
["Availability: now"]
[]
["Beds: 4"]
["Baths: 3.5"]
["Sqft: 2,096"]
["Lot: --"]
["Days on Zillow: 7"]
["Built: 2004"]
["Townhouse"]
[]
["Maps"]
["Save"]
["7975 Wycliffe Way, Lehi, UT"]
["37 Photos"]
["7975 Wycliffe Way, Lehi, UT"]
[]
[" House For Rent:$925/mo"]
["Rent Zestimate®: $1,111/mo"]
["Pets: No"]
["Availability: now"]
[]
["Beds: 2"]
["Baths: 3.25"]
["Sqft: 1,720"]
["Lot: 4,791"]
["Days on Zillow: 8"]
["Built: 2001"]
["Townhouse"]
[]
["Maps"]
["Save"]
["1219 Firefly Dr, Spanish Fork, UT"]
["8 Photos"]
["1219 Firefly Dr, Spanish Fork, UT"]
[]
[" House For Rent:$1,025/mo"]
["Rent Zestimate®: $1,072/mo"]
["Pets: --"]
["Availability: now"]
[]
["Beds: 3"]
["Baths: 2.0"]
["Sqft: 1,439"]
["Lot: 871"]
["Days on Zillow: 13"]
["Built: 2008"]
["Single Family"]
[]
["Maps"]
["Save"]
["384 S 650 E, Orem, UT"]
["384 S 650 E, Orem, UT"]
[]
[" House For Rent:$1,100/mo"]
["Rent Zestimate®: $1,125/mo"]
["Pets: No"]
["Availability: 01/01/2013"]
[]
["Beds: 4"]
["Baths: 1.5"]
["Sqft: 1,436"]
["Lot: 14,810"]
["Days on Zillow: 13"]
["Built: 1954"]
["Single Family"]
[]
["Maps"]
["Save"]
["561 N 1120 E, Spanish Fork, UT"]
["7 Photos"]
["561 N 1120 E, Spanish Fork, UT"]
[]
[" House For Rent:$800/mo"]
["Rent Zestimate®: $871/mo"]
["Pets: No"]
["Availability: now"]
[]
["Beds: 2"]
["Baths: 2.0"]
["Sqft: 1,084"]
["Lot: --"]
["Days on Zillow: 14"]
["Built: --"]
["Townhouse"]
[]
["Maps"]
["Save"]
["108 W 1230 N APT 320, Provo, UT"]
["4 Photos"]
["108 W 1230 N APT 320, Provo, UT"]
[]
[" Condo For Rent:$380/mo"]
["Rent Zestimate®: $878/mo"]
["Pets: --"]
["Availability: now"]
[]
["Beds: 3"]
["Baths: 2.0"]
["Sqft: 1,020"]
["Lot: 1,306"]
["Days on Zillow: 14"]
["Built: --"]
["Condo"]
[]
["Maps"]
["Save"]
["1490 S 430 W # 1490, Orem, UT"]
["8 Photos"]
["1490 S 430 W # 1490, Orem, UT"]
[]
[" Condo For Rent:$310/mo"]
["Rent Zestimate®: $357/mo"]
["Pets: --"]
["Availability: now"]
[]
["Beds: 2"]
["Baths: 2.0"]
["Sqft: 1,100"]
["Lot: --"]
["Days on Zillow: 14"]
["Built: --"]
["Condo"]
[]
["Maps"]
["Save"]
["2646 S Lost Creek Cir, Saratoga Springs, UT"]
["4 Photos"]
["2646 S Lost Creek Cir, Saratoga Springs, UT"]
[]
[" House For Rent:$1,895/mo"]
["Rent Zestimate®: $1,905/mo"]
["Pets: --"]
["Availability: now"]
[]
["Beds: 4"]
["Baths: 2.5"]
["Sqft: 4,000"]
["Lot: 10,454"]
["Days on Zillow: 15"]
["Built: 2007"]
["Single Family"]
[]
["Maps"]
["Save"]
[]
[1]
[2]
[3]
[4]
["Next page »"]
["Tip: save this search and get email alerts when new listings hit the market."]
["Top Cities"]
[]
[]
["Atlanta real estate"]
["Baltimore real estate"]
["Denver real estate"]
["Jacksonville real estate"]
["Oklahoma City real estate"]
["Orlando real estate"]
["Phoenix real estate"]
["San Antonio real estate"]
["San Diego real estate"]
["San Jose real estate"]
["Seattle real estate"]
["Nearby Cities"]
[]
[]
["American Fork Homes for Sale"]
["Eagle Mountain Homes for Sale"]
["Highland Homes for Sale"]
["Lehi Homes for Sale"]
["Orem Homes for Sale"]
["Payson Homes for Sale"]
["Pleasant Grove Homes for Sale"]
["Provo Homes for Sale"]
["Spanish Fork Homes for Sale"]
["Springville Homes for Sale"]
["Why use Zillow?"]
[]
["Zillow helps you find the newest Utah real estate listings. By analyzing information on thousands of houses for sale in Utah, Utah and across the United States, we calculate home values (Zestimates) and the Zillow Home Value Price Index for Utah proper, its neighborhoods, and surrounding areas. If you're looking to rent, check out our extensive list of luxury apartments, houses to rent in Utah or apartments to rent in Utah. We make it easy to find your dream home by filtering home types, price, and size. Filtering with keyword search is also possible, like \"waterfront\" or \"pool\" in Utah."]
[]
["About Us"]
["About Zestimates"]
["Jobs"]
["Press"]
["Investors"]
["Help"]
["Advertising"]
["Terms of Use"]
["Privacy Policy"]
[]
["Zillow Research"]
["Zillow Blog"]
[]
["Yahoo!-Zillow Real Estate Network"]
["© 2006-2012 Zillow"]
[]
["NEW! See foreclosures in your area - for free! Sign in required to see details "]
["Close"]
[]
["Only showing 500 homes. Zoom in, or use filters to narrow your search."]
[]
["Displaying unmapped homes. See mappable homes."]
["close ad"]
["View choices"]
["Street ViewAerial"]
["No Street View available for this property."]

{"sheet":"WebQueryIntRate","index":6,"n_rows":190,"n_cols":5,"rows_kept":190,"cut":false,"hidden":false,"merged":[]}
[]
["Mortgage calculator | Mortgage rates"]
["Bookmark this pageBookmark this page"]
["Follow Us: Google+"]
[]
["Bankrate.com"]
["Search Bankrate.com"]
["Search"]
["bankrate cobrand"]
["Home"]
["Compare Rates"]
["Calculators"]
["News"]
["The Lighter Side"]
["Blogs"]
["Mortgage"]
["Refinance"]
["Home"]
["Equity"]
["CDs"]
["Investment"]
["Checking &"]
["Savings"]
["Auto"]
["Credit"]
["Cards"]
["Debt"]
["Management"]
["Insurance"]
["College"]
["Finance"]
["Retirement"]
["Taxes"]
["Find ratesDown arrow"]
["Mortgage"]
["Home Equity"]
["100 Highest CD yields"]
["100 Highest MMAs"]
["Credit Cards"]
["Auto"]
["Checking"]
["Insurance"]
["College Finance"]
["Personal Loans"]
["Credit Unions"]
["advertisement"]
["PrintSubscribe"]
["mortgage"]
["Current Mortgage Interest Rates"]
["By Bankrate.com"]
["Current Interest Rates"]
["MortgagesCDsAuto LoansHome EquityCredit Cards"]
["3 month mortgage trends"]
["Mortgage rate graph"]
["Find the best mortgage rates in your area."]
["Add this graph to your pageâ\u0080¹â\u0080ºget code"]
["Add to website or blog X"]
["Select All . Press Ctrl + C to copyClose"]
["Mortgage Rates","30 yr fixed","15 yr fixed","5/1 ARM","30 yr jumbo"]
["2012-11-28",3.52,2.86,2.74,4]
["2012-11-21",3.53,2.86,2.7,4.01]
["2012-11-14",3.54,2.87,2.72,4.0599999999999996]
["2012-11-07",3.57,2.88,2.72,4.09]
["2012-10-31",3.57,2.89,2.72,4.1100000000000003]
["2012-10-24",3.61,2.9,2.73,4.17]
["2012-10-17",3.62,2.91,2.72,4.18]
["2012-10-10",3.59,2.88,2.68,4.1900000000000004]
["2012-10-03",3.52,2.84,2.67,4.16]
["2012-09-26",3.55,2.88,2.68,4.1900000000000004]
["2012-09-19",3.7,2.95,2.69,4.32]
["Add this table to your pageâ\u0080¹â\u0080ºget code"]
["Add to website or blog X"]
["Select All . Press Ctrl + C to copyClose"]
["More On Mortgage Rates:"]
["Find the best mortgage rates"]
["Create a news alert for \"mortgages\""]
["Â "]
[]
["Share this story"]
[]
["LinkedIn"]
["Delicious"]
["Reddit"]
["Stumbleupon"]
["Email story"]
[]
["advertisement"]
["Related Links:"]
["National mortgage rates for Nov. 29, 2012"]
["Mortgage rates for Nov. 29, 2012"]
["Will bank modify mortgage on rental home?"]
["Related Articles:"]
["Rate Trend Index"]
["Invest or pay mortgage?"]
["Rates sluggish post-holiday"]
[]
["Bankrate.com's corrections policy"]
["Updated: Nov. 29, 2012"]
["What people are sharing"]
[]
["1. When to buy an airline ticket"]
["2. New health reform rules unveiled"]
["3. 8 illegal interview questions to avoid"]
["4. Celebrity house for sale: Walt Weiss"]
["5. No cuts to 401(k)s or IRAs"]
["6. The fiscal cliff may affect your taxes"]
["7. Top 10 mistakes by DIYers"]
["8. 4 ways to make a mortgage payment"]
["9. What to do with savings bonds?"]
["10. Jerry Rice's house is for sale"]
[]
["Find a Mortgage Rate"]
["Fixed Rates Mortgage Types"]
["10 year fixed"]
["15 year fixed"]
["20 year fixed"]
["30 year fixed"]
["30 year FHA"]
["See all fixed"]
["30 year FHA refi"]
["15 year fixed refi"]
["30 year fixed refi"]
["Adjustable Rates Mortgage Types"]
["1 year ARM"]
["3/1 ARM"]
["5/1 ARM"]
["7/1 ARM"]
["10/1 ARM"]
["See all ARMs"]
["1 yr ARM refi"]
["3/1 ARM refi"]
["5/1 ARM refi"]
["Interest Only Mortgage Types"]
["3/1 ARM (IO)"]
["5/1 ARM (IO)"]
["7/1 ARM (IO)"]
["3/1 ARM (IO) refi"]
["30 year fixed (IO)"]
["30 year fixed (IO) refi"]
["See all IOs"]
["Compare Mortgage Rates"]
["Zip code:"]
["Product:"]
[]
["30 yr fixed average"]
[3.4099999999999998E-2]
["About our rates"]
["advertisement"]
["About this index"]
["Mortgage Overnight Averages"]
["Product",null,"Rate","+/-","Last week "]
["30 yr fixed mtg",null,3.4099999999999998E-2,null,3.4500000000000003E-2]
["15 yr fixed mtg",null,2.8400000000000002E-2,null,2.86E-2]
["5/1 ARM",null,2.81E-2,null,2.7799999999999998E-2]
["30 yr fixed mtg refi",null,3.3799999999999997E-2,null,3.4099999999999998E-2]
["View rates in your area:"]
[]
["Feeling lost in the mortgage wilderness?"]
["Let Bankrate's Mortgage Analysis be your GPS. This newsletter tracks our exclusive mortgage features, rates and tools. Delivered Thursdays."]
[]
["advertisement"]
["Bankrate on Facebook"]
["<!--iframe-->"]
["By Polyana da Costa"]
["Mortgages Â»"]
["New rules when dumping your mortgage"]
["Fannie Mae has announced new options for homeowners who want to hand over their keys to be released from their mortgages."]
["View more Bankrate Blogs Â»"]
["Partner Center"]
["advertisement"]
["Mortgage rates giving you motion sickness?"]
["Let us watch for you. We'll tell you when they hit your target."]
["Sign up now! It's simple. Â» "]
["RSS icon"]
["Subscribe:RSS Feeds"]
["advertisement"]
["About us"]
["Advertise with Bankrate"]
["Partners"]
["Press Room"]
["Investor Relations"]
["Free Content Center"]
["Contact Us"]
["Sitemap"]
["Topics"]
["Newsletters"]
["Understanding Bankrate's rate averages"]
["Â© 2012 Bankrate, Inc. All Rights Reserved."]
["Privacy Policy/Your California Privacy Rights"]
["Terms of Use"]